[Event "45th FIDE Olympiad 2024"]
[Site "Budapest"]
[Date "2024.09.12"]
[Round "2.83"]
[White "Tran, Tuan Minh"]
[Black "Hossain, Enamul"]
[Result "1-0"]
[ECO "D37"]
[WhiteElo "2434"]
[BlackElo "2354"]
[Annotator "TA"]
[PlyCount "79"]
[EventDate "2024.09.05"]
[EventType "team-tourn"]
[EventCountry "HUN"]
[SourceTitle "playchess.com"]
[Source "ChessBase"]
[SourceQuality "1"]
[WhiteTeam "Vietnam"]
[BlackTeam "Bangladesh"]
[WhiteTeamCountry "VIE"]
[BlackTeamCountry "BAN"]
[TimeControl "40/5400+30:1800+30"]

{[%evp 9,79,0,0,0,0,0,0,16,7,0,0,-13,8,0,-4,-5,0,0,0,0,0,0,0,0,0,0,2,10,22,14,11,17,36,27,27,22,37,33,57,0,0,-2,0,-18,-37,-26,-20,-36,-27,-33,-30,-28,-14,-18,-12,-86,0,0,0,0,0,-197,0,0,307,296,629,625,630,150,29981,29982]} 1. c4 {[%cal Bc2c4,Bc4c5,Bc5b6][%mdl 32]} e6 2. Nc3 d5 3. d4 a6 4. Nf3 Nf6 5. c5 b6 6. cxb6 c5 7. Bf4 Bd6 8. Bxd6 {The position is equal.} Qxd6 9. dxc5 Qxc5 10. Rc1 {[%cal Oc3d5] Black must now prevent Nxd5!} Nbd7 {[#]} 11. e4 $1 dxe4 12. Nxe4 {[%cal Bc3e4,Be4d2,Bd2c4,Bc4a5][%mdl 32]} Qb4+ 13. Ned2 O-O {[%cal Oc8b7]} 14. a3 Qxb6 15. Nc4 Qb8 16. Be2 Nb6 {[%cal Bd7b6,Bb6d5,Bd5f4][%mdl 32]} 17. Na5 Nbd5 18. b4 Bb7 19. O-O Nf4 20. Nxb7 Qxb7 (20... Nxe2+ {simplifies} 21. Qxe2 Qxb7 22. g3 Rac8) 21. Bc4 Rfd8 {[%cal Bf8d8,Bd8d2,Bd2f2][%mdl 32]} 22. Qb3 Ng4 (22... Qe4 {simplifies} 23. g3 Ne2+ 24. Bxe2 Qxe2 25. Rfe1 Qd3) 23. Rfe1 {Prevents Ne5.} Rd2 {[%cal Ob7b6]} 24. Bf1 (24. Rc2 $14 Rxc2 (24... Rad8 25. Rxd2 Rxd2 26. Rd1 $18) 25. Qxc2) 24... Rxf2 $11 25. Qc4 $1 {[#]} g5 26. Re4 (26. h3 Rxf3) 26... Qb8 {[%cal Of2f3] ...Rxf3! would now be deadly.} 27. Qc7 Qxc7 $40 {[%mdl 128] Black mounts an attack.} 28. Rxc7 {[%cal Of3e5]} Rd8 29. Re1 {[%cal Oc7c3] Against Rd1} Ra2 30. h3 (30. Nxg5 $2 Rdd2 31. Ne4 (31. Bxa6 $2 Rxg2+ 32. Kh1 Nf2#) 31... Rxg2+ (31... Nxg2 32. Rb1 $16) 32. Bxg2 Rxg2+ 33. Kh1 Rxh2+ 34. Kg1 Kg7 $19 (34... Ne2+ $2 35. Rxe2 Rxe2 36. Nc5 $19)) 30... Nh6 31. Nxg5 Rdd2 {[%cal Rd2g2]} 32. Re4 (32. g3 $11 {keeps the balance.} Nd5 33. Rd7) 32... Nxg2 (32... Nd5 $17 33. Rd7 Ra1 (33... Rxa3 34. Nxe6 fxe6 35. Rxe6 $11) 34. Nxe6 fxe6 35. Rxe6 Nf7 (35... Rxg2+ 36. Kxg2 Nf4+ 37. Kf2 $18)) 33. Nxe6 fxe6 34. Rxe6 {[%cal Re6e8]} Nf7 {aiming for ...Nh4.} 35. Re8+ Kg7 {Strongly threatening ...Nh4.} 36. Ree7 Nh4 $2 {[%mdl 8192]} 37. Rxf7+ $18 Kg8 $2 (37... Kg6 38. Rg7+ (38. Rxh7 $2 {gets mated.} Nf3+ 39. Kh1 Rh2#) (38. Bxa6 Rg2+ 39. Kh1 Rh2+ 40. Kg1 Rag2+ 41. Kf1 Rh1#) 38... Kf6 39. Rcf7+ (39. Rxh7 $2 Nf3+ 40. Kh1 Rh2#) 39... Ke5 40. Rg5+ (40. Bxa6 Rxa3 41. Bb7 Rd1+ 42. Rf1 Rxf1+ 43. Kxf1 Nf5 $11) (40. Rxh7 Rd4 $16) 40... Kd6) 38. Rf4 {Threatening mate with Bc4+.} (38. Bxa6 {is a self mate.} Rg2+ 39. Kh1 Rh2+ (39... Rxa3 $2 40. Rg7+ Rxg7 41. Bc4+ Kf8 42. Rxg7 $19) 40. Kg1 Rag2+ 41. Kf1 Rh1#) 38... Ng6 39. Re4 (39. Bc4+ $18 Kh8 40. Rc8+ Kg7 41. Rf7+ Kh6 42. Bxa2 (42. Bxa6 Rg2+ 43. Kh1 Rh2+ 44. Kg1 Ne5 $11) 42... Rxa2 43. Rc3) 39... Rf2 $2 (39... Kf8 $16) 40. Re8+ {Weighted Error Value: White=0.19 (very precise) /Black=0.45.  Loses game:     	---       	Black=1      Missed win:     	---       	Black=1      Mistake:       	White=2     	Black=2      OK:         	White=14    	Black=14     Best:        	White=5     	Black=2      Strong:       	White=1     	---} 1-0

[Event "45th FIDE Olympiad 2024"]
[Site "Budapest"]
[Date "2024.09.12"]
[Round "2.84"]
[White "Murshed, Niaz"]
[Black "Banh, Gia Huy"]
[Result "1/2-1/2"]
[ECO "E65"]
[WhiteElo "2318"]
[BlackElo "2425"]
[Annotator "TA"]
[PlyCount "59"]
[EventDate "2024.09.05"]
[EventType "team-tourn"]
[EventCountry "HUN"]
[SourceTitle "playchess.com"]
[Source "ChessBase"]
[SourceQuality "1"]
[WhiteTeam "Bangladesh"]
[BlackTeam "Vietnam"]
[WhiteTeamCountry "BAN"]
[BlackTeamCountry "VIE"]
[TimeControl "40/5400+30:1800+30"]

{[%evp 18,59,20,13,0,0,5,7,8,-4,0,-2,0,-2,6,7,8,18,19,7,14,0,0,0,0,0,0,0,0,0,0,0,0,0,0,0,0,-16,-16,-40,-40,-40,-40,-40]} 1. Nf3 Nf6 2. c4 g6 3. g3 Bg7 4. Bg2 O-O 5. O-O d6 6. Nc3 c5 7. d4 Nc6 8. dxc5 dxc5 9. Be3 Be6 10. Ng5 {Nxe6 would now be deadly.} Qxd1 11. Rfxd1 {aiming for Nxe6.} ({Less strong is} 11. Raxd1 Bxc4 12. Bxc5 Rfc8 $16) 11... Bxc4 12. Bxc5 Rfd8 {The position is equal.} 13. Kf1 h6 14. Nge4 Nxe4 15. Bxe4 Bxc3 16. bxc3 Rxd1+ 17. Rxd1 Bxa2 18. Bxc6 bxc6 $11 {[%mdl 4096] Endgame. KRB-KRB} 19. Ra1 Bc4 20. Rxa7 Rxa7 21. Bxa7 {KB-KB} f5 22. f4 Kf7 23. Kf2 Ke6 24. Bc5 Bb5 25. h4 h5 26. e3 Bd3 27. Bd4 Kd5 28. Be5 Ke4 29. Bd4 Bc4 30. Be5 {Weighted Error Value: White=0.05 (flawless) /Black=0.01 (flawless) .  OK:         	White=7     	Black=10} 1/2-1/2

[Event "45th FIDE Olympiad 2024"]
[Site "Budapest"]
[Date "2024.09.12"]
[Round "2.85"]
[White "Ziska, Helgi Dam"]
[Black "Yilmaz, Mustafa"]
[Result "1-0"]
[ECO "B90"]
[WhiteElo "2553"]
[BlackElo "2587"]
[Annotator "TA"]
[PlyCount "81"]
[EventDate "2024.09.05"]
[EventType "team-tourn"]
[EventCountry "HUN"]
[SourceTitle "playchess.com"]
[Source "ChessBase"]
[SourceQuality "1"]
[WhiteTeam "Faroe Islands"]
[BlackTeam "Turkiye"]
[WhiteTeamCountry "FAI"]
[TimeControl "40/5400+30:1800+30"]

{[%evp 10,81,22,0,0,0,-20,-7,0,-8,0,0,0,0,0,-17,0,0,0,0,6,6,18,31,41,8,298,44,51,25,117,109,119,123,104,114,122,0,81,0,233,231,239,238,229,0,0,0,229,235,363,342,1079,986,602,1099,1475,1273,918,1200,889,594,594,592,587,570,1355,1293,1288,1144,1257,1241,1091,1008]} 1. e4 c5 2. Nf3 {[%cal Bg1f3,Bf3d4,Bd4f5][%mdl 32]} d6 {[%cal Bd7d6,Bd6d5,Bd5d4][%mdl 32]} 3. d4 cxd4 4. Nxd4 Nf6 5. Nc3 a6 6. a3 e5 7. Nf5 d5 8. Bg5 $1 d4 {The position is equal.} 9. Bxf6 $1 Qxf6 10. Nd5 {A dynamic duo of knights.} Qc6 {Threatens to win with ...Bxf5.} 11. c4 Nd7 12. b4 g6 13. Nxd4 exd4 14. Qxd4 f6 15. c5 Kf7 {[%cal Ob7b6]} 16. Bc4 Kg7 {[%cal Ob7b6]} 17. O-O {White wants to play f4.} Nxc5 $2 {[%mdl 8192]} 18. bxc5 $2 (18. Rac1 $18) 18... Bxc5 $14 19. Qb2 $36 {[%mdl 2048] Rfe1 would now be deadly. Black is under pressure.} Rf8 (19... Qd6 $11) 20. e5 $16 {White is more active.} fxe5 21. Qxe5+ Kh6 22. Rae1 Bf5 {[%cal Oa8e8] Wards off Re4} 23. h4 ({White should play} 23. Qc3 $1 $16) 23... Rae8 (23... Rad8 $1 $11 {keeps the balance.}) 24. Qb2 (24. Qf4+ $16 Kg7 25. Nc7 Rxe1 26. Rxe1) 24... Bxf2+ $2 25. Qxf2 $18 Qxc4 26. Qd2+ Kg7 27. Qb2+ $2 ({White must play} 27. h5 $1 $18 {[%cal Rh5h6] h6+ would kill now.} Qc5+ (27... gxh5 $2 28. Rxe8 $18) 28. Kh1 Rxe1 (28... Qxa3 29. h6+ Kf7 30. Qd4) 29. h6+ Kf7 30. Rxe1) 27... Kh6 $11 28. Qd2+ $2 (28. Rxe8 $11 Rxe8 29. Qd2+ Kg7 30. Rxf5 gxf5 31. Qb2+ Kf7 32. Qf6+ Kg8 33. Ne7+ Rxe7 34. Qxe7) 28... Kg7 $18 {[#]} 29. h5 $1 {[%cal Bh4h5,Bh5h6][%mdl 1056] Intending h6+ and mate. White has strong compensation.} Qc5+ {[#]} (29... gxh5 $2 {too greedy.} 30. Rxe8 $18) (29... Kf7 $142 30. Ne3 (30. Rc1 Re2 $18) 30... Qc5) 30. Kh1 $1 {White wants to mate with h6+.} Rd8 $2 ({And not} 30... Qxa3 31. h6+ Kg8 32. Qd4) (30... Rxe1 31. Rxe1 Bc2 32. h6+ Kg8) 31. h6+ {White is clearly winning.} Kg8 {[#]} 32. Qb2 $1 Rf7 {Prevents Qg7+} 33. Nf6+ Rxf6 34. Qxf6 Qf8 {Inhibits Qg7+.} 35. Qxf8+ Rxf8 {[%mdl 4096] Endgame. KRR-KRB} 36. Re7 {Dodges Bd7} Rb8 37. Kg1 b5 {[#]} 38. g4 $1 {[%mdl 512]} Bd3 39. Rd1 Bc2 40. Rd2 Bb1 41. Re1 {Weighted Error Value: White=0.55/Black=0.58.  Loses game:     	---       	Black=2      Missed win:     	White=2     	---        Mistake:       	White=3     	Black=4      Inaccurate:     	White=1     	Black=1      OK:         	White=7     	Black=8      Best:        	White=2     	Black=5      Strong:       	White=4     	---        Brilliant:      	White=1     	---} 1-0

[Event "45th FIDE Olympiad 2024"]
[Site "Budapest"]
[Date "2024.09.12"]
[Round "2.86"]
[White "Gurel, Ediz"]
[Black "Nielsen, Hogni Egilstoft"]
[Result "1-0"]
[ECO "C58"]
[WhiteElo "2602"]
[BlackElo "2379"]
[Annotator "TA"]
[PlyCount "67"]
[EventDate "2024.09.05"]
[EventType "team-tourn"]
[EventCountry "HUN"]
[SourceTitle "playchess.com"]
[Source "ChessBase"]
[SourceQuality "1"]
[WhiteTeam "Turkiye"]
[BlackTeam "Faroe Islands"]
[BlackTeamCountry "FAI"]
[TimeControl "40/5400+30:1800+30"]

{[%evp 14,67,22,27,43,25,44,47,60,54,47,41,100,102,118,93,85,90,96,106,99,98,97,113,122,116,109,-41,-17,-159,-160,-232,-207,-227,-230,-219,-254,-250,-206,-196,-75,-66,-75,-69,-57,-165,-180,-164,-153,-127,484,495,626,630,604,613]} 1. e4 e5 2. Nf3 Nc6 3. Bc4 Nf6 4. Ng5 d5 5. exd5 Na5 6. Bb5+ c6 7. dxc6 bxc6 8. Bd3 Nd5 {Prevents Nc3} 9. Nf3 {[%cal Oe1g1]} (9. Nxh7 $2 Nf4 10. Be4 f5 $19) 9... Nf4 {[%csl LRd3,LRg2]} 10. Bf1 {[%cal Od2d4]} Bd6 {White is slightly better.} 11. d4 e4 12. Ne5 Ng6 (12... Ne6 $14) 13. Nc3 Qe7 14. Nxe4 Bxe5 15. dxe5 Qxe5 16. Qe2 {[%cal Of2f4] Black must now prevent f4!} O-O 17. Nc3 Qc7 18. Be3 Be6 19. Qh5 $1 Rad8 20. b3 ({Better is} 20. Qc5 $16) 20... f5 $1 $15 {aiming for ...Qe5.} 21. Bd3 (21. Rd1 $11 {remains equal.}) 21... Qe5 $17 22. Kd2 (22. O-O $17 Qxc3 23. Rae1) 22... Nf4 $19 23. Qf3 Nxd3 24. cxd3 f4 25. Bxa7 Bf5 26. Rhe1 Qf6 (26... Rxd3+ $2 27. Qxd3 Qf6 28. Qf3 Rd8+ 29. Ke2 (29. Kc1 Rd3 $16) 29... Bd3+ 30. Qxd3 Rxd3 31. Kxd3 $18) (26... Qc7 $19 {has better winning chances.} 27. Bc5 Rxd3+ 28. Qxd3 Bxd3 29. Kxd3 (29. Bxf8 $2 Bg6 $19) 29... Rd8+ 30. Kc2 Qd7) 27. d4 $17 {[%cal Oa1d1]} (27. Qxf4 $2 {too greedy.} Rxd3+ (27... Bxd3 $2 28. Qxf6 Rxf6 29. Bb6 $18) 28. Ke2 Qxc3 $19 (28... Rxc3 $2 29. Qd4 $19)) 27... Rd7 $1 28. Bb6 {[%cal Oa1d1] Rad1! is the strong threat.} Nb7 {...c5 would now be deadly.} 29. Ke2 {[#]} (29. Qxf4 $2 {loses.} c5 30. d5 Qxb6 $19) (29. Rad1 $1 $15 c5 30. g4 fxg3 (30... Rxd4+ 31. Kc1 $16) 31. Qxg3 Qxb6 32. d5) 29... c5 $1 $19 {[%mdl 512]} 30. Na4 {[#]} (30. Nd5 Qe6+) 30... Rxd4 $1 31. Kf1 {[#]} Rxa4 $4 {[%mdl 8192]} 32. bxa4 $18 {White is clearly winning.} Qxb6 33. Qd5+ Kh8 {[#]} 34. Qxf5 $3 {[%mdl 512] Weighted Error Value: White=0.26 (precise) /Black=0.34.  Loses game:     	---       	Black=1      Mistake:       	White=4     	Black=2      OK:         	White=5     	Black=7      Best:        	White=6     	Black=3      Strong:       	White=1     	Black=2      Brilliant:      	---       	Black=1} 1-0

[Event "45th FIDE Olympiad 2024"]
[Site "Budapest"]
[Date "2024.09.12"]
[Round "2.86"]
[White "Nicolas, Carbonell"]
[Black "Oluka, Robert Mcligeyo"]
[Result "0-1"]
[ECO "E30"]
[WhiteElo "1798"]
[BlackElo "1990"]
[Annotator "NA"]
[PlyCount "78"]
[EventDate "2024.09.05"]
[EventType "team-tourn"]
[EventCountry "HUN"]
[SourceTitle "playchess.com"]
[Source "ChessBase"]
[SourceQuality "1"]
[WhiteTeam "Burkina Faso"]
[BlackTeam "Kenya"]
[WhiteTeamCountry "BUR"]
[BlackTeamCountry "KEN"]
[TimeControl "40/5400+30:1800+30"]

1. d4 Nf6 2. c4 e6 3. Nc3 Bb4 4. Bg5 c5 5. d5 Bxc3+ 6. bxc3 h6 7. Bh4 d6 8. Nf3 e5 9. Bxf6 Qxf6 10. Qd3 O-O 11. e4 Qg6 12. Rb1 f5 13. Nh4 Qg4 14. Nxf5 Rxf5 15. f3 Qh4+ 16. g3 Qg5 17. exf5 Bxf5 18. Qd1 Qe3+ 19. Be2 Qxc3+ 20. Kf1 Bh3+ 21. Kf2 e4 22. fxe4 Nd7 23. Qd3 Rf8+ 24. Ke3 Qf6 25. Kd2 b6 26. Qe3 Qe7 27. Bf1 Ne5 28. Be2 Rf3 29. Qxf3 Nxf3+ 30. Bxf3 Qe5 31. Rb3 Qd4+ 32. Rd3 Qf2+ 33. Be2 Bg2 34. Re1 Bxe4 35. Re3 Bg2 36. Rd3 Bh3 37. Kd1 Qf6 38. Kd2 Bf5 39. Rf3 Qb2+ 0-1

[Event "45th FIDE Olympiad 2024"]
[Site "Budapest"]
[Date "2024.09.12"]
[Round "2.87"]
[White "Egilstoft, Rogvi"]
[Black "Erdogmus, Yagiz Kaan"]
[Result "0-1"]
[ECO "C54"]
[WhiteElo "2278"]
[BlackElo "2592"]
[Annotator "TA"]
[PlyCount "94"]
[EventDate "2024.09.05"]
[EventType "team-tourn"]
[EventCountry "HUN"]
[SourceTitle "playchess.com"]
[Source "ChessBase"]
[SourceQuality "1"]
[WhiteTeam "Faroe Islands"]
[BlackTeam "Turkiye"]
[WhiteTeamCountry "FAI"]
[TimeControl "40/5400+30:1800+30"]

{[%evp 12,94,14,11,17,0,-6,-5,0,-14,0,0,0,0,0,0,0,-4,-8,-8,-7,-18,-18,-20,-20,-23,-23,-35,-31,-32,-34,-38,-35,-38,-36,-33,-32,-34,-29,-29,-27,-26,-24,-44,-37,-56,-59,-55,-62,-116,-31,-61,-41,-22,-41,-101,-93,-100,-88,-102,-90,-86,-97,-91,-80,-76,-76,-219,-151,-151,-133,-133,-133,-106,0,-103,0,-371,-269,-343,-372,-767,-725,-515,-502]} 1. e4 e5 2. Nf3 Nc6 3. Bc4 Bc5 4. c3 Nf6 5. d3 {[%cal Bd2d3,Bd3d4][%mdl 32]} d6 6. h3 O-O 7. O-O a5 8. d4 Ba7 9. Re1 h6 {The position is equal.} 10. Be3 Re8 11. dxe5 Nxe5 12. Nxe5 dxe5 13. Bxa7 Rxa7 14. Qxd8 Rxd8 15. Na3 c6 {Prevents Nb5} 16. Rad1 Re8 17. Nc2 b5 18. Bf1 Be6 19. Rd6 Rc8 20. a3 Kf8 21. f3 {[%cal Oc3c4]} Ke7 22. Rd2 {[%cal Oc3c4]} Rd7 23. Rxd7+ Nxd7 24. Ne3 Ra8 25. Rc1 Bb3 26. Bd3 g6 27. Kf2 h5 28. Nf1 Nc5 29. Be2 Rd8 30. c4 (30. h4 $15) 30... bxc4 {Black is much more active.} (30... b4 $17 31. h4 bxa3 32. bxa3 f5 33. exf5 gxf5) 31. Bxc4 $15 Bxc4 32. Rxc4 $17 {[%mdl 4096] Endgame. KRN-KRN} Nd3+ 33. Ke2 ({Better is} 33. Kg3 $15) 33... Nf4+ 34. Kf2 Rb8 35. b4 {[#]} axb4 $1 36. axb4 {[#]} Rxb4 $1 37. Rxb4 Nd3+ 38. Ke3 Nxb4 {KN-KN} 39. f4 (39. h4 $17) 39... Kf6 {White must now prevent ...Nc2+.} 40. g3 Ke6 41. Nd2 c5 42. Nf3 f6 (42... Nc6 $17 {...c4 is the strong threat.} 43. Ng5+ Ke7) 43. Nh4 (43. fxe5 $11 fxe5 44. Kd2) 43... Kf7 (43... exf4+ $17 44. gxf4 Kf7) 44. Kd2 $2 {[%mdl 8192]} (44. fxe5 $11 Nc6 (44... fxe5 45. Kd2 $11) 45. e6+ Kg7 46. Ng2) 44... exf4 $19 45. gxf4 g5 46. fxg5 (46. Ng2 h4 47. Ke3) 46... fxg5 47. Nf3 Kf6 {Weighted Error Value: White=0.43/Black=0.13 (very precise) .  Loses game:     	White=1     	---        Mistake:       	White=5     	Black=3      Inaccurate:     	White=1     	Black=1      OK:         	White=12    	Black=14     Best:        	White=1     	Black=5      Strong:       	---       	Black=1} 0-1

[Event "45th FIDE Olympiad 2024"]
[Site "Budapest"]
[Date "2024.09.12"]
[Round "2.88"]
[White "Can, Emre"]
[Black "Apol, Luitjen Akselsson"]
[Result "1-0"]
[ECO "B90"]
[WhiteElo "2547"]
[BlackElo "2219"]
[Annotator "TA"]
[PlyCount "85"]
[EventDate "2024.09.05"]
[EventType "team-tourn"]
[EventCountry "HUN"]
[SourceTitle "playchess.com"]
[Source "ChessBase"]
[SourceQuality "1"]
[WhiteTeam "Turkiye"]
[BlackTeam "Faroe Islands"]
[BlackTeamCountry "FAI"]
[TimeControl "40/5400+30:1800+30"]

{[%evp 17,85,19,29,20,22,15,27,12,27,22,29,7,21,27,10,16,0,0,43,18,49,12,16,18,32,29,57,69,65,60,67,0,0,0,0,0,153,124,106,53,224,179,182,161,194,214,190,91,249,257,234,227,302,277,312,302,312,314,1225,1073,1278,1143,1158,1018,6323,6079,5514,5390,5173,2604]} 1. e4 c5 2. Nf3 d6 3. d4 cxd4 4. Nxd4 Nf6 5. Nc3 a6 6. Be3 e5 7. Nb3 Be6 8. f3 Nbd7 9. g4 b5 {[%cal Bb7b5,Bb5b4][%mdl 32]} 10. a4 b4 11. Nd5 Bxd5 12. exd5 {White has an edge.} Nb6 13. Bg1 h6 {[#]} (13... Nfxd5 $2 14. a5 $18) (13... Nbxd5 $2 14. g5 $18) 14. f4 $1 Be7 15. a5 Nbd7 (15... Nbxd5 $6 16. g5 Nxf4 (16... hxg5 $2 17. fxg5 Nc3 18. bxc3 $18) 17. gxf6 Bxf6 18. Qf3 Bh4+ 19. Kd1 $16) 16. Qf3 exf4 17. O-O-O Ne5 {[%csl LRf3,LRg4]} 18. Qxf4 Nfxg4 {aiming for ...Bg5. A dynamic duo of knights.} 19. Qxb4 {[%cal Of1a6] Bxa6! would now be deadly.} O-O 20. Bb6 Qd7 21. h3 Bg5+ 22. Kb1 Ne3 {[#]} 23. h4 $1 $36 {[%mdl 2048] White has the initiative.} Qf5 (23... Qg4 24. Qxg4) 24. Bxe3 (24. Nd4 $1 $14 Qe4 25. Bd3 Nxd3 (25... Qxd5 26. hxg5 Nxd3 27. cxd3 $16) 26. cxd3 Qxd5 27. hxg5 Nxd1 28. Rxd1 Qxg5 (28... hxg5 29. Qc4 $18) 29. Qxd6) 24... Bxe3 $11 25. Qxd6 Rfc8 $1 26. Rh2 (26. Bxa6 $2 Qxc2+ (26... Rxc2 $2 27. Ka2 $19) 27. Ka2 Rcb8 $19) 26... Rd8 $2 (26... Qf3 $11 27. Re2 Rxc2 28. Rxc2 (28. Kxc2 $2 Qe4+ 29. Kc3 Qc4#) (28. Nd4 Rxb2+ 29. Kxb2 Nc4+ 30. Ka2 Qxe2+ 31. Bxe2 Nxd6 $17) 28... Qxd1+ 29. Nc1 Qxf1 30. Qxe5 Bxc1 31. Rxc1 Qd3+ 32. Ka2 Rd8 (32... Qb5 33. Kb1 $11)) 27. Qb4 $1 $16 Rab8 28. Qa4 ({White should play} 28. Qc3 $1 $16 {[%cal Rc3e3]} Ng4 29. Bh3) 28... Nf3 $2 ({Better is} 28... Ng4 $14 29. Bh3 h5) 29. Re2 Rxb3 30. Qxb3 Nd2+ 31. Rexd2 (31. Rdxd2 Qxf1+ 32. Ka2 Bxd2 33. Rxd2 Qf4) 31... Bxd2 32. Qd3 (32. Rxd2 $18 {has better winning chances.} Qxf1+ 33. Ka2) 32... Rxd5 $2 (32... Qxd3 $16 {was called for.} 33. Bxd3 Bxa5) 33. Qxf5 $18 ({Don't take} 33. Qxa6 Rd8 $16 (33... Rxa5 34. Qd6 $18)) 33... Rxf5 $16 {[%cal Bd5f5,Bf5f2,Bf2d2,Bd2d1,Bd1e1,Be1e5,Be5e2][%mdl 4128] Endgame. KRB-KRB} 34. c3 (34. Bxa6 Bxa5 35. Rd4 Kf8 $11) 34... g5 {[%cal Of5f6] [#]} 35. Bd3 $1 ({Not} 35. Bxa6 Rxa5 36. Rxd2 Rxa6 $14) 35... Rf2 36. hxg5 hxg5 37. Bxa6 {[%cal Od1d2] Rxd2! is the strong threat.} g4 $2 {[#]} (37... Be3 38. Rd3 Rf6) 38. Rxd2 $1 $18 {[%mdl 512] White is clearly winning.} Rxd2 39. Bb7 {Strongly threatening a6.} Rd1+ {[#]} 40. Ka2 $1 {Black must now prevent a6.} Re1 41. a6 Re5 42. b4 Re2+ 43. Kb3 {Weighted Error Value: White=0.16 (very precise) /Black=0.35.  Loses game:     	---       	Black=1      Mistake:       	White=3     	Black=3      Inaccurate:     	White=1     	Black=4      OK:         	White=9     	Black=11     Best:        	White=3     	Black=1      Strong:       	White=3     	Black=1      Brilliant:      	White=1     	---} 1-0

[Event "45th FIDE Olympiad 2024"]
[Site "Budapest"]
[Date "2024.09.12"]
[Round "2.88"]
[White "Lompo, Boammani Aser"]
[Black "Mutuge, Ian"]
[Result "0-1"]
[ECO "D02"]
[WhiteElo "1568"]
[BlackElo "1938"]
[Annotator "NA"]
[PlyCount "82"]
[EventDate "2024.09.05"]
[EventType "team-tourn"]
[EventCountry "HUN"]
[SourceTitle "playchess.com"]
[Source "ChessBase"]
[SourceQuality "1"]
[WhiteTeam "Burkina Faso"]
[BlackTeam "Kenya"]
[WhiteTeamCountry "BUR"]
[BlackTeamCountry "KEN"]
[TimeControl "40/5400+30:1800+30"]

1. d4 Nf6 2. Bf4 e6 3. e3 Be7 4. Nd2 d5 5. Bd3 O-O 6. Ngf3 c5 7. c3 Nc6 8. Ne5 Bd6 9. g4 Bxe5 10. dxe5 Nd7 11. Nf3 g6 12. h4 Qc7 13. g5 Ndxe5 14. Nxe5 Nxe5 15. Bc2 b6 16. h5 Bb7 17. Rh3 Rad8 18. hxg6 fxg6 19. Qb1 Qf7 20. f3 Nc4 21. b3 Na3 22. Bxg6 Qxg6 23. Qxg6+ hxg6 24. Be5 Nc2+ 25. Kd2 Nxa1 26. Rh8+ Kf7 27. Rh7+ Ke8 28. Rxb7 Rf7 29. Rxf7 Kxf7 30. Kc1 Ke8 31. Kb2 Nxb3 32. axb3 Kd7 33. Ka3 Kc6 34. Ka4 a5 35. Ka3 b5 36. Kb2 b4 37. Kc2 Kb5 38. Kb2 c4 39. cxb4 axb4 40. bxc4+ dxc4 41. Bd4 Rxd4 0-1